[Event "Titled Tuesday Blitz June 22 2021"]
[White "Lazavik, Denis"]
[Black "Hammer, Jon Ludvig"]
[WhiteFideId "13515110"]
[BlackFideId "1503707"]
[WhiteElo "2436"]
[BlackElo "2607"]
[Result "1/2-1/2"]
[Round "07"]
[TimeControl "180+1"]
[Date "2021.06.22"]
[WhiteClock "0:00:05"]
[BlackClock "0:00:10"]

1. d4 {[%clk 0:03:00]}  f5 {[%clk 0:02:58]} 2. Nc3 {[%clk 0:02:58]}  Nf6 {[%clk 0:02:57]} 3. Bg5 {[%clk 0:02:56]}  d5 {[%clk 0:02:56]} 4. e3 {[%clk 0:02:55]}  e6 {[%clk 0:02:51]} 5. Nf3 {[%clk 0:02:50]}  Be7 {[%clk 0:02:50]} 6. Bd3 {[%clk 0:02:33]}  O-O {[%clk 0:02:50]} 7. Ne2 {[%clk 0:02:29]}  Ne4 {[%clk 0:02:50]} 8. Bxe7 {[%clk 0:02:27]}  Qxe7 {[%clk 0:02:51]} 9. O-O {[%clk 0:02:27]}  c5 {[%clk 0:02:42]} 10. c4 {[%clk 0:02:25]}  dxc4 {[%clk 0:02:43]} 11. Bxc4 {[%clk 0:02:24]}  Nd6 {[%clk 0:02:31]} 12. Rc1 {[%clk 0:02:10]}  Nxc4 {[%clk 0:02:21]} 13. Rxc4 {[%clk 0:02:09]}  Nd7 {[%clk 0:02:15]} 14. Qc2 {[%clk 0:01:33]}  b6 {[%clk 0:02:14]} 15. dxc5 {[%clk 0:01:32]}  bxc5 {[%clk 0:01:54]} 16. Rd1 {[%clk 0:01:25]}  Bb7 {[%clk 0:01:49]} 17. Ne1 {[%clk 0:01:14]}  Rac8 {[%clk 0:01:43]} 18. Rc3 {[%clk 0:01:13]}  Nf6 {[%clk 0:01:29]} 19. Qa4 {[%clk 0:01:11]}  Ne4 {[%clk 0:01:20]} 20. Rcc1 {[%clk 0:01:09]}  Bc6 {[%clk 0:01:12]} 21. Qa5 {[%clk 0:01:06]}  Bd5 {[%clk 0:00:54]} 22. Nf4 {[%clk 0:01:00]}  Ba8 {[%clk 0:00:48]} 23. Ned3 {[%clk 0:00:57]}  e5 {[%clk 0:00:44]} 24. Ne2 {[%clk 0:00:54]}  Rfd8 {[%clk 0:00:41]} 25. f3 {[%clk 0:00:34]}  Nf6 {[%clk 0:00:35]} 26. Ng3 {[%clk 0:00:30]}  e4 {[%clk 0:00:20]} 27. fxe4 {[%clk 0:00:16]}  Nxe4 {[%clk 0:00:21]} 28. Nxf5 {[%clk 0:00:13]}  Qg5 {[%clk 0:00:21]} 29. Nf4 {[%clk 0:00:13]}  Rxd1+ {[%clk 0:00:19]} 30. Rxd1 {[%clk 0:00:13]}  Qxf5 {[%clk 0:00:19]} 31. Rd8+ {[%clk 0:00:13]}  Rxd8 {[%clk 0:00:19]} 32. Qxd8+ {[%clk 0:00:14]}  Qf8 {[%clk 0:00:20]} 33. Qd7 {[%clk 0:00:14]}  g5 {[%clk 0:00:18]} 34. Qe6+ {[%clk 0:00:09]}  Kh8 {[%clk 0:00:18]} 35. Qe5+ {[%clk 0:00:09]}  Kg8 {[%clk 0:00:19]} 36. Qe6+ {[%clk 0:00:08]}  Kh8 {[%clk 0:00:14]} 37. Qe5+ {[%clk 0:00:07]}  Kg8 {[%clk 0:00:10]} 38. Qe6+ {[%clk 0:00:05]} 1/2-1/2


[Site "https://www.chess.com"]

[Event "Titled Tuesday Blitz June 22 2021"]
[White "Martinez Alcantara, Jose Eduardo"]
[Black "Gabrielian, Artur"]
[WhiteFideId "3805662"]
[BlackFideId "4131002"]
[WhiteElo "2690"]
[BlackElo "2539"]
[Result "1-0"]
[Round "07"]
[TimeControl "180+1"]
[Date "2021.06.22"]
[WhiteClock "0:00:18"]
[BlackClock "0:00:03"]

1. e4 {[%clk 0:03:00]}  c5 {[%clk 0:02:59]} 2. Nf3 {[%clk 0:03:01]}  Nc6 {[%clk 0:02:58]} 3. Bc4 {[%clk 0:02:59]}  e6 {[%clk 0:02:57]} 4. d3 {[%clk 0:02:58]}  Nf6 {[%clk 0:02:57]} 5. Nc3 {[%clk 0:02:58]}  d5 {[%clk 0:02:55]} 6. Bb5 {[%clk 0:02:58]}  d4 {[%clk 0:02:49]} 7. Bxc6+ {[%clk 0:02:58]}  bxc6 {[%clk 0:02:50]} 8. Nb1 {[%clk 0:02:58]}  Nd7 {[%clk 0:02:49]} 9. Nbd2 {[%clk 0:02:58]}  e5 {[%clk 0:02:49]} 10. Nc4 {[%clk 0:02:55]}  f6 {[%clk 0:02:49]} 11. O-O {[%clk 0:02:51]}  Be7 {[%clk 0:02:49]} 12. Nh4 {[%clk 0:02:42]}  g6 {[%clk 0:02:46]} 13. f4 {[%clk 0:02:40]}  O-O {[%clk 0:02:37]} 14. f5 {[%clk 0:02:36]}  g5 {[%clk 0:02:36]} 15. Nf3 {[%clk 0:02:36]}  Kh8 {[%clk 0:02:32]} 16. g4 {[%clk 0:02:35]}  Qe8 {[%clk 0:02:32]} 17. Kf2 {[%clk 0:02:30]}  Nb6 {[%clk 0:02:32]} 18. h4 {[%clk 0:02:22]}  Nxc4 {[%clk 0:02:08]} 19. dxc4 {[%clk 0:02:23]}  gxh4 {[%clk 0:02:06]} 20. Rh1 {[%clk 0:02:22]}  Qf7 {[%clk 0:02:05]} 21. b3 {[%clk 0:02:17]}  a5 {[%clk 0:02:05]} 22. a4 {[%clk 0:02:17]}  Rg8 {[%clk 0:02:03]} 23. Rxh4 {[%clk 0:02:17]}  Ba6 {[%clk 0:02:03]} 24. Qh1 {[%clk 0:02:16]}  Rad8 {[%clk 0:02:02]} 25. Bd2 {[%clk 0:02:10]}  d3 {[%clk 0:01:59]} 26. c3 {[%clk 0:02:06]}  Rb8 {[%clk 0:01:58]} 27. Rb1 {[%clk 0:01:48]}  Rg7 {[%clk 0:01:57]} 28. Bh6 {[%clk 0:01:38]}  Rgg8 {[%clk 0:01:52]} 29. Nd2 {[%clk 0:01:38]}  Bf8 {[%clk 0:01:37]} 30. Be3 {[%clk 0:01:38]}  Rb7 {[%clk 0:01:29]} 31. Qh3 {[%clk 0:01:37]}  Rg7 {[%clk 0:01:23]} 32. Rh1 {[%clk 0:01:36]}  Qg8 {[%clk 0:00:52]} 33. Kf3 {[%clk 0:01:27]}  Rgd7 {[%clk 0:00:48]} 34. Rh5 {[%clk 0:01:26]}  Rg7 {[%clk 0:00:45]} 35. Qh4 {[%clk 0:01:26]}  Rgf7 {[%clk 0:00:42]} 36. Rh3 {[%clk 0:01:23]}  Be7 {[%clk 0:00:36]} 37. Qf2 {[%clk 0:01:18]}  Qf8 {[%clk 0:00:34]} 38. Qh2 {[%clk 0:01:17]}  Qg8 {[%clk 0:00:33]} 39. Bf2 {[%clk 0:01:08]}  Bf8 {[%clk 0:00:31]} 40. Be3 {[%clk 0:01:06]}  Be7 {[%clk 0:00:30]} 41. R3h4 {[%clk 0:01:02]}  Bf8 {[%clk 0:00:29]} 42. g5 {[%clk 0:01:00]}  fxg5 {[%clk 0:00:26]} 43. Bxg5 {[%clk 0:00:59]}  Qg6 {[%clk 0:00:14]} 44. Qxe5+ {[%clk 0:00:50]}  Bg7 {[%clk 0:00:12]} 45. Qe8+ {[%clk 0:00:48]}  Bf8 {[%clk 0:00:12]} 46. Rxh7+ {[%clk 0:00:39]}  Qxh7 {[%clk 0:00:12]} 47. Rxh7+ {[%clk 0:00:40]}  Kxh7 {[%clk 0:00:13]} 48. Qxc6 {[%clk 0:00:37]}  Ra7 {[%clk 0:00:09]} 49. Qg6+ {[%clk 0:00:38]}  Kh8 {[%clk 0:00:09]} 50. Bf6+ {[%clk 0:00:36]}  Bg7 {[%clk 0:00:09]} 51. Bxg7+ {[%clk 0:00:35]}  Rxg7 {[%clk 0:00:09]} 52. Qe8+ {[%clk 0:00:36]}  Kh7 {[%clk 0:00:10]} 53. Qh5+ {[%clk 0:00:33]}  Kg8 {[%clk 0:00:09]} 54. f6 {[%clk 0:00:34]}  Raf7 {[%clk 0:00:09]} 55. Qd5 {[%clk 0:00:20]}  Bb7 {[%clk 0:00:05]} 56. Qe6 {[%clk 0:00:18]}  Rg6 {[%clk 0:00:03]} 57. Qe8+ {[%clk 0:00:18]} 1-0


[Site "https://www.chess.com"]

[Event "Titled Tuesday Blitz June 22 2021"]
[White "Moroni, Luca Jr"]
[Black "Vignesh, N R"]
[WhiteFideId "865834"]
[BlackFideId "25012215"]
[WhiteElo "2491"]
[BlackElo "2401"]
[Result "1/2-1/2"]
[Round "07"]
[TimeControl "180+1"]
[Date "2021.06.22"]
[WhiteClock "0:00:08"]
[BlackClock "0:00:18"]

1. d4 {[%clk 0:03:00]}  d5 {[%clk 0:02:58]} 2. Bf4 {[%clk 0:02:57]}  c6 {[%clk 0:02:56]} 3. e3 {[%clk 0:02:57]}  Nf6 {[%clk 0:02:55]} 4. c4 {[%clk 0:02:57]}  e6 {[%clk 0:02:50]} 5. Nc3 {[%clk 0:02:56]}  Bd6 {[%clk 0:02:50]} 6. Bxd6 {[%clk 0:02:52]}  Qxd6 {[%clk 0:02:49]} 7. Nf3 {[%clk 0:02:50]}  Nbd7 {[%clk 0:02:48]} 8. Bd3 {[%clk 0:02:46]}  O-O {[%clk 0:02:47]} 9. O-O {[%clk 0:02:44]}  dxc4 {[%clk 0:02:36]} 10. Bxc4 {[%clk 0:02:44]}  b5 {[%clk 0:02:36]} 11. Bd3 {[%clk 0:02:41]}  Bb7 {[%clk 0:02:34]} 12. a3 {[%clk 0:02:41]}  a6 {[%clk 0:02:34]} 13. b4 {[%clk 0:02:40]}  Rfd8 {[%clk 0:02:29]} 14. Ne4 {[%clk 0:02:29]}  Nxe4 {[%clk 0:02:27]} 15. Bxe4 {[%clk 0:02:30]}  a5 {[%clk 0:02:27]} 16. Qb3 {[%clk 0:02:23]}  Nf6 {[%clk 0:02:16]} 17. Bc2 {[%clk 0:01:43]}  axb4 {[%clk 0:02:13]} 18. axb4 {[%clk 0:01:43]}  Nd5 {[%clk 0:02:13]} 19. Rxa8 {[%clk 0:01:36]}  Rxa8 {[%clk 0:02:12]} 20. Rb1 {[%clk 0:01:37]}  g6 {[%clk 0:01:25]} 21. Ne5 {[%clk 0:01:35]}  Nb6 {[%clk 0:01:00]} 22. Be4 {[%clk 0:01:31]}  Ra4 {[%clk 0:00:58]} 23. Bf3 {[%clk 0:01:26]}  f6 {[%clk 0:00:50]} 24. Nd3 {[%clk 0:01:23]}  Nc4 {[%clk 0:00:47]} 25. Nc5 {[%clk 0:01:21]}  Ra3 {[%clk 0:00:47]} 26. Qd1 {[%clk 0:01:08]}  Bc8 {[%clk 0:00:45]} 27. Ra1 {[%clk 0:01:04]}  e5 {[%clk 0:00:31]} 28. Rxa3 {[%clk 0:00:54]}  Nxa3 {[%clk 0:00:32]} 29. dxe5 {[%clk 0:00:45]}  Qxd1+ {[%clk 0:00:26]} 30. Bxd1 {[%clk 0:00:45]}  fxe5 {[%clk 0:00:26]} 31. Bf3 {[%clk 0:00:46]}  Nc2 {[%clk 0:00:23]} 32. Bxc6 {[%clk 0:00:45]}  Nxb4 {[%clk 0:00:24]} 33. Bxb5 {[%clk 0:00:45]}  Kg7 {[%clk 0:00:24]} 34. g3 {[%clk 0:00:41]}  Kf6 {[%clk 0:00:23]} 35. Kg2 {[%clk 0:00:36]}  h6 {[%clk 0:00:21]} 36. h4 {[%clk 0:00:34]}  Bg4 {[%clk 0:00:20]} 37. Ne4+ {[%clk 0:00:31]}  Ke7 {[%clk 0:00:20]} 38. Nc5 {[%clk 0:00:24]}  Be6 {[%clk 0:00:18]} 39. Nd3 {[%clk 0:00:20]}  Nxd3 {[%clk 0:00:17]} 40. Bxd3 {[%clk 0:00:21]}  g5 {[%clk 0:00:18]} 41. Be4 {[%clk 0:00:18]}  Kf6 {[%clk 0:00:18]} 42. Kf3 {[%clk 0:00:18]}  Bf7 {[%clk 0:00:17]} 43. Ke2 {[%clk 0:00:17]}  Be6 {[%clk 0:00:17]} 44. Kd3 {[%clk 0:00:17]}  Ke7 {[%clk 0:00:17]} 45. Kc3 {[%clk 0:00:17]}  Kd6 {[%clk 0:00:17]} 46. Kb4 {[%clk 0:00:17]}  Bd7 {[%clk 0:00:18]} 47. Kc4 {[%clk 0:00:16]}  Be8 {[%clk 0:00:16]} 48. Ba8 {[%clk 0:00:11]}  Bd7 {[%clk 0:00:16]} 49. Kd3 {[%clk 0:00:11]}  Bf5+ {[%clk 0:00:16]} 50. Be4 {[%clk 0:00:11]}  Bd7 {[%clk 0:00:16]} 51. Bg6 {[%clk 0:00:09]}  Bc6 {[%clk 0:00:16]} 52. Bf5 {[%clk 0:00:09]}  Bb7 {[%clk 0:00:16]} 53. Ke2 {[%clk 0:00:09]}  Bc6 {[%clk 0:00:15]} 54. Bc2 {[%clk 0:00:08]}  Bb7 {[%clk 0:00:15]} 55. hxg5 {[%clk 0:00:08]}  hxg5 {[%clk 0:00:15]} 56. Kd2 {[%clk 0:00:09]}  Bc6 {[%clk 0:00:15]} 57. Kc3 {[%clk 0:00:09]}  Kc5 {[%clk 0:00:15]} 58. Bd3 {[%clk 0:00:09]}  Bd5 {[%clk 0:00:15]} 59. Kd2 {[%clk 0:00:09]}  Bc6 {[%clk 0:00:15]} 60. Bc2 {[%clk 0:00:09]}  Bb7 {[%clk 0:00:15]} 61. Ke2 {[%clk 0:00:10]}  Bc6 {[%clk 0:00:15]} 62. Bf5 {[%clk 0:00:10]}  Bb7 {[%clk 0:00:16]} 63. Bg4 {[%clk 0:00:10]}  Bc6 {[%clk 0:00:16]} 64. Bf3 {[%clk 0:00:11]}  Bb5+ {[%clk 0:00:17]} 65. Ke1 {[%clk 0:00:10]}  Bc4 {[%clk 0:00:17]} 66. Be4 {[%clk 0:00:11]}  Be6 {[%clk 0:00:17]} 67. Ke2 {[%clk 0:00:11]}  Bd7 {[%clk 0:00:17]} 68. Kf3 {[%clk 0:00:11]}  Kd6 {[%clk 0:00:17]} 69. Bc2 {[%clk 0:00:08]}  Ke6 {[%clk 0:00:15]} 70. Bb3+ {[%clk 0:00:05]}  Kf6 {[%clk 0:00:15]} 71. Ke4 {[%clk 0:00:05]}  Bc6+ {[%clk 0:00:15]} 72. Kd3 {[%clk 0:00:05]}  Bb5+ {[%clk 0:00:15]} 73. Kc3 {[%clk 0:00:05]}  Bc6 {[%clk 0:00:15]} 74. Kb4 {[%clk 0:00:05]}  Be4 {[%clk 0:00:15]} 75. Kc5 {[%clk 0:00:05]}  Bf3 {[%clk 0:00:16]} 76. Kd6 {[%clk 0:00:06]}  Be2 {[%clk 0:00:16]} 77. Bd5 {[%clk 0:00:05]}  Bd3 {[%clk 0:00:16]} 78. Bc6 {[%clk 0:00:05]}  Bc2 {[%clk 0:00:16]} 79. Bf3 {[%clk 0:00:05]}  Bd3 {[%clk 0:00:16]} 80. Bg2 {[%clk 0:00:05]}  Bc2 {[%clk 0:00:17]} 81. Bf1 {[%clk 0:00:05]}  Be4 {[%clk 0:00:17]} 82. Bh3 {[%clk 0:00:05]}  Bc2 {[%clk 0:00:17]} 83. f4 {[%clk 0:00:05]}  gxf4 {[%clk 0:00:17]} 84. gxf4 {[%clk 0:00:06]}  exf4 {[%clk 0:00:17]} 85. exf4 {[%clk 0:00:07]}  Bf5 {[%clk 0:00:17]} 86. Bxf5 {[%clk 0:00:07]}  Kxf5 {[%clk 0:00:17]} 87. Kd7 {[%clk 0:00:08]}  Kxf4 {[%clk 0:00:18]} 1/2-1/2


[Site "https://www.chess.com"]

[Event "Titled Tuesday Blitz June 22 2021"]
[White "Ozen, Bahadir"]
[Black "Khubukshanov, Erdem"]
[WhiteFideId "6337058"]
[BlackFideId "54114527"]
[WhiteElo "2503"]
[BlackElo "2222"]
[Result "0-1"]
[Round "07"]
[TimeControl "180+1"]
[Date "2021.06.22"]
[WhiteClock "0:00:04"]
[BlackClock "0:00:12"]

1. h3 {[%clk 0:03:00]}  e5 {[%clk 0:02:57]} 2. c3 {[%clk 0:02:59]}  d5 {[%clk 0:02:56]} 3. d4 {[%clk 0:03:00]}  e4 {[%clk 0:02:51]} 4. Bf4 {[%clk 0:02:59]}  Bd6 {[%clk 0:02:51]} 5. Bxd6 {[%clk 0:02:59]}  Qxd6 {[%clk 0:02:51]} 6. e3 {[%clk 0:03:00]}  Nf6 {[%clk 0:02:40]} 7. Qa4+ {[%clk 0:03:00]}  Nbd7 {[%clk 0:02:39]} 8. Qa3 {[%clk 0:02:59]}  c5 {[%clk 0:02:39]} 9. c4 {[%clk 0:02:49]}  O-O {[%clk 0:02:28]} 10. Nc3 {[%clk 0:02:48]}  b6 {[%clk 0:02:20]} 11. Rd1 {[%clk 0:02:41]}  Bb7 {[%clk 0:02:07]} 12. cxd5 {[%clk 0:02:25]}  Rfd8 {[%clk 0:01:23]} 13. Nge2 {[%clk 0:02:13]}  a6 {[%clk 0:01:20]} 14. Ng3 {[%clk 0:02:07]}  Qe7 {[%clk 0:01:06]} 15. Nf5 {[%clk 0:02:00]}  Qf8 {[%clk 0:01:05]} 16. d6 {[%clk 0:01:53]}  Ne8 {[%clk 0:01:00]} 17. Be2 {[%clk 0:01:03]}  g6 {[%clk 0:00:43]} 18. Ng3 {[%clk 0:00:53]}  Nxd6 {[%clk 0:00:42]} 19. O-O {[%clk 0:00:52]}  h5 {[%clk 0:00:32]} 20. Rfe1 {[%clk 0:00:31]}  h4 {[%clk 0:00:32]} 21. Nf1 {[%clk 0:00:31]}  Rac8 {[%clk 0:00:25]} 22. dxc5 {[%clk 0:00:23]}  Nxc5 {[%clk 0:00:25]} 23. Rd4 {[%clk 0:00:23]}  Ne6 {[%clk 0:00:24]} 24. Rd2 {[%clk 0:00:23]}  Nf5 {[%clk 0:00:16]} 25. Qxf8+ {[%clk 0:00:24]}  Kxf8 {[%clk 0:00:16]} 26. Red1 {[%clk 0:00:24]}  Ke7 {[%clk 0:00:16]} 27. Rxd8 {[%clk 0:00:23]}  Rxd8 {[%clk 0:00:16]} 28. Rxd8 {[%clk 0:00:23]}  Kxd8 {[%clk 0:00:16]} 29. Nd2 {[%clk 0:00:23]}  Nd6 {[%clk 0:00:16]} 30. Nc4 {[%clk 0:00:22]}  Kc7 {[%clk 0:00:15]} 31. Nxd6 {[%clk 0:00:14]}  Kxd6 {[%clk 0:00:16]} 32. Kf1 {[%clk 0:00:14]}  f6 {[%clk 0:00:14]} 33. Ke1 {[%clk 0:00:12]}  g5 {[%clk 0:00:14]} 34. Kd2 {[%clk 0:00:11]}  Nc5 {[%clk 0:00:14]} 35. b4 {[%clk 0:00:08]}  Nd7 {[%clk 0:00:14]} 36. Bg4 {[%clk 0:00:05]}  Ne5 {[%clk 0:00:14]} 37. Bf5 {[%clk 0:00:05]}  Nc4+ {[%clk 0:00:15]} 38. Ke2 {[%clk 0:00:05]}  Ke5 {[%clk 0:00:14]} 39. Bg6 {[%clk 0:00:05]}  Nb2 {[%clk 0:00:14]} 40. Kd2 {[%clk 0:00:04]}  Nd3 {[%clk 0:00:14]} 41. f3 {[%clk 0:00:04]}  Nxb4 {[%clk 0:00:09]} 42. Bxe4 {[%clk 0:00:03]}  Bxe4 {[%clk 0:00:08]} 43. a3 {[%clk 0:00:03]}  Nc2 {[%clk 0:00:04]} 44. Nxe4 {[%clk 0:00:02]}  Nxa3 {[%clk 0:00:05]} 45. Nf2 {[%clk 0:00:03]}  Nc4+ {[%clk 0:00:05]} 46. Kd3 {[%clk 0:00:03]}  Nd6 {[%clk 0:00:06]} 47. Ng4+ {[%clk 0:00:03]}  Kf5 {[%clk 0:00:06]} 48. Nh6+ {[%clk 0:00:03]}  Ke6 {[%clk 0:00:07]} 49. Ng4 {[%clk 0:00:04]}  b5 {[%clk 0:00:07]} 50. e4 {[%clk 0:00:03]}  a5 {[%clk 0:00:08]} 51. Ne3 {[%clk 0:00:04]}  a4 {[%clk 0:00:09]} 52. Kc3 {[%clk 0:00:04]}  Ke5 {[%clk 0:00:10]} 53. Kb4 {[%clk 0:00:04]}  Kd4 {[%clk 0:00:10]} 54. Ng4 {[%clk 0:00:04]}  f5 {[%clk 0:00:10]} 55. exf5 {[%clk 0:00:05]}  Nxf5 {[%clk 0:00:10]} 56. Nf6 {[%clk 0:00:05]}  Ne3 {[%clk 0:00:10]} 57. Nh7 {[%clk 0:00:03]}  Nxg2 {[%clk 0:00:11]} 58. Nxg5 {[%clk 0:00:03]}  Nf4 {[%clk 0:00:12]} 59. Nf7 {[%clk 0:00:02]}  Nxh3 {[%clk 0:00:12]} 60. f4 {[%clk 0:00:01]}  Nxf4 {[%clk 0:00:12]} 61. Ng5 {[%clk 0:00:02]}  h3 {[%clk 0:00:11]} 62. Nf3+ {[%clk 0:00:03]}  Ke3 {[%clk 0:00:11]} 63. Nh2 {[%clk 0:00:03]}  Kf2 {[%clk 0:00:12]} 64. Kxb5 {[%clk 0:00:04]}  a3 {[%clk 0:00:12]} 0-1


[Site "https://www.chess.com"]

[Event "Titled Tuesday Blitz June 22 2021"]
[White "Perez Gormaz, Matias"]
[Black "Lagarde, Maxime"]
[WhiteFideId "3406342"]
[BlackFideId "662399"]
[WhiteElo "2414"]
[BlackElo "2630"]
[Result "0-1"]
[Round "07"]
[TimeControl "180+1"]
[Date "2021.06.22"]
[WhiteClock "0:00:05"]
[BlackClock "0:00:26"]

1. e4 {[%clk 0:03:00]}  Nc6 {[%clk 0:03:00]} 2. Nf3 {[%clk 0:03:01]}  d6 {[%clk 0:02:59]} 3. d4 {[%clk 0:03:00]}  Nf6 {[%clk 0:03:00]} 4. Nc3 {[%clk 0:03:01]}  g6 {[%clk 0:03:00]} 5. Be3 {[%clk 0:03:01]}  Bg7 {[%clk 0:03:01]} 6. Qd2 {[%clk 0:03:02]}  Ng4 {[%clk 0:03:00]} 7. Bg5 {[%clk 0:02:59]}  h6 {[%clk 0:03:00]} 8. Bh4 {[%clk 0:03:00]}  g5 {[%clk 0:03:00]} 9. Bg3 {[%clk 0:03:00]}  e5 {[%clk 0:03:00]} 10. d5 {[%clk 0:02:43]}  Ne7 {[%clk 0:03:00]} 11. h4 {[%clk 0:02:41]}  f6 {[%clk 0:02:48]} 12. Be2 {[%clk 0:02:20]}  Ng6 {[%clk 0:02:45]} 13. O-O-O {[%clk 0:01:57]}  Nf4 {[%clk 0:02:35]} 14. Bxf4 {[%clk 0:01:44]}  gxf4 {[%clk 0:02:36]} 15. h5 {[%clk 0:01:41]}  Nxf2 {[%clk 0:02:35]} 16. Bb5+ {[%clk 0:01:41]}  Bd7 {[%clk 0:02:24]} 17. Bxd7+ {[%clk 0:01:40]}  Qxd7 {[%clk 0:02:23]} 18. Qxf2 {[%clk 0:01:41]}  f5 {[%clk 0:02:20]} 19. Nh4 {[%clk 0:01:31]}  fxe4 {[%clk 0:02:19]} 20. Nxe4 {[%clk 0:01:32]}  Qa4 {[%clk 0:02:10]} 21. Nc3 {[%clk 0:01:28]}  Qa5 {[%clk 0:02:09]} 22. Nf5 {[%clk 0:01:22]}  Bf6 {[%clk 0:02:03]} 23. Kb1 {[%clk 0:01:20]}  O-O-O {[%clk 0:02:01]} 24. Ne4 {[%clk 0:01:20]}  Rdf8 {[%clk 0:02:00]} 25. Rh3 {[%clk 0:01:20]}  Bd8 {[%clk 0:01:58]} 26. Ng7 {[%clk 0:00:33]}  Qb4 {[%clk 0:01:49]} 27. Nc3 {[%clk 0:00:28]}  Kb8 {[%clk 0:01:41]} 28. Ne6 {[%clk 0:00:27]}  Rfg8 {[%clk 0:01:41]} 29. a3 {[%clk 0:00:27]}  Qa5 {[%clk 0:01:41]} 30. Ne4 {[%clk 0:00:26]}  Be7 {[%clk 0:01:37]} 31. Rc3 {[%clk 0:00:25]}  Rc8 {[%clk 0:01:35]} 32. Rb3 {[%clk 0:00:23]}  c6 {[%clk 0:01:30]} 33. Qd2 {[%clk 0:00:19]}  Qxd2 {[%clk 0:01:25]} 34. Rxd2 {[%clk 0:00:20]}  Rhg8 {[%clk 0:01:23]} 35. g3 {[%clk 0:00:20]}  Rg4 {[%clk 0:01:11]} 36. gxf4 {[%clk 0:00:19]}  exf4 {[%clk 0:01:12]} 37. dxc6 {[%clk 0:00:19]}  Rxc6 {[%clk 0:01:13]} 38. Rf3 {[%clk 0:00:18]}  d5 {[%clk 0:01:13]} 39. Rxd5 {[%clk 0:00:05]}  Rxe6 {[%clk 0:01:12]} 40. Nc3 {[%clk 0:00:06]}  a6 {[%clk 0:01:08]} 41. Rf5 {[%clk 0:00:06]}  Bg5 {[%clk 0:01:08]} 42. Nd5 {[%clk 0:00:05]}  Rg3 {[%clk 0:01:03]} 43. Rf1 {[%clk 0:00:05]}  Re2 {[%clk 0:00:58]} 44. Nxf4 {[%clk 0:00:04]}  Rh2 {[%clk 0:00:58]} 45. Ne6 {[%clk 0:00:03]}  Rgg2 {[%clk 0:00:57]} 46. Rf8+ {[%clk 0:00:03]}  Ka7 {[%clk 0:00:57]} 47. Rc8 {[%clk 0:00:03]}  Rxh5 {[%clk 0:00:53]} 48. Rf7 {[%clk 0:00:03]}  Rh1+ {[%clk 0:00:51]} 49. Ka2 {[%clk 0:00:03]}  Re2 {[%clk 0:00:46]} 50. Nc5 {[%clk 0:00:03]}  Re7 {[%clk 0:00:44]} 51. Rxe7 {[%clk 0:00:02]}  Bxe7 {[%clk 0:00:45]} 52. Rc7 {[%clk 0:00:02]}  Bd6 {[%clk 0:00:38]} 53. Rd7 {[%clk 0:00:01]}  Bxc5 {[%clk 0:00:38]} 54. Rd5 {[%clk 0:00:02]}  Bb6 {[%clk 0:00:37]} 55. b4 {[%clk 0:00:02]}  h5 {[%clk 0:00:37]} 56. c4 {[%clk 0:00:03]}  h4 {[%clk 0:00:37]} 57. c5 {[%clk 0:00:04]}  Bc7 {[%clk 0:00:37]} 58. Rh5 {[%clk 0:00:05]}  h3 {[%clk 0:00:37]} 59. Rh7 {[%clk 0:00:06]}  Kb8 {[%clk 0:00:34]} 60. Rh8+ {[%clk 0:00:06]}  Ka7 {[%clk 0:00:34]} 61. Rh7 {[%clk 0:00:07]}  Be5 {[%clk 0:00:33]} 62. c6 {[%clk 0:00:07]}  Kb6 {[%clk 0:00:33]} 63. cxb7 {[%clk 0:00:07]}  Ka7 {[%clk 0:00:33]} 64. Kb3 {[%clk 0:00:07]}  h2 {[%clk 0:00:32]} 65. Ka4 {[%clk 0:00:07]}  Ra1 {[%clk 0:00:29]} 66. Re7 {[%clk 0:00:05]}  h1=Q {[%clk 0:00:27]} 67. Rxe5 {[%clk 0:00:05]}  Qd1+ {[%clk 0:00:26]} 0-1


[Site "https://www.chess.com"]

[Event "Titled Tuesday Blitz June 22 2021"]
[White "Tristan, Leonardo"]
[Black "Tari, Aryan"]
[WhiteFideId "113816"]
[BlackFideId "1510045"]
[WhiteElo "2404"]
[BlackElo "2656"]
[Result "0-1"]
[Round "07"]
[TimeControl "180+1"]
[Date "2021.06.22"]
[WhiteClock "0:00:01"]
[BlackClock "0:00:09"]

1. d4 {[%clk 0:03:00]}  Nf6 {[%clk 0:02:57]} 2. Bg5 {[%clk 0:03:01]}  d5 {[%clk 0:02:48]} 3. e3 {[%clk 0:03:00]}  c5 {[%clk 0:02:47]} 4. c3 {[%clk 0:03:01]}  Ne4 {[%clk 0:02:43]} 5. Bf4 {[%clk 0:02:57]}  Nc6 {[%clk 0:02:43]} 6. Nd2 {[%clk 0:02:55]}  Bf5 {[%clk 0:02:33]} 7. Nxe4 {[%clk 0:02:28]}  Bxe4 {[%clk 0:02:34]} 8. Qb3 {[%clk 0:02:28]}  Qd7 {[%clk 0:02:20]} 9. Nf3 {[%clk 0:02:04]}  c4 {[%clk 0:02:20]} 10. Qd1 {[%clk 0:01:59]}  e6 {[%clk 0:02:20]} 11. Nd2 {[%clk 0:01:59]}  Bg6 {[%clk 0:02:20]} 12. e4 {[%clk 0:02:00]}  Be7 {[%clk 0:02:13]} 13. h4 {[%clk 0:01:58]}  h6 {[%clk 0:01:29]} 14. g3 {[%clk 0:01:55]}  O-O {[%clk 0:01:21]} 15. Bg2 {[%clk 0:01:55]}  b5 {[%clk 0:01:21]} 16. Qg4 {[%clk 0:01:42]}  h5 {[%clk 0:01:14]} 17. Qe2 {[%clk 0:01:34]}  b4 {[%clk 0:01:10]} 18. Bf3 {[%clk 0:01:30]}  bxc3 {[%clk 0:01:10]} 19. bxc3 {[%clk 0:01:30]}  Ba3 {[%clk 0:01:05]} 20. Rb1 {[%clk 0:01:01]}  e5 {[%clk 0:00:52]} 21. dxe5 {[%clk 0:00:55]}  d4 {[%clk 0:00:53]} 22. Nxc4 {[%clk 0:00:49]}  dxc3 {[%clk 0:00:53]} 23. Nxa3 {[%clk 0:00:46]}  Nd4 {[%clk 0:00:53]} 24. Qd3 {[%clk 0:00:37]}  Qa4 {[%clk 0:00:50]} 25. Bd1 {[%clk 0:00:24]}  Qxa3 {[%clk 0:00:43]} 26. Qxd4 {[%clk 0:00:25]}  Rfd8 {[%clk 0:00:43]} 27. Qa4 {[%clk 0:00:25]}  Rxd1+ {[%clk 0:00:32]} 28. Qxd1 {[%clk 0:00:22]}  Bxe4 {[%clk 0:00:33]} 29. Rb3 {[%clk 0:00:14]}  Qxa2 {[%clk 0:00:29]} 30. O-O {[%clk 0:00:07]}  c2 {[%clk 0:00:30]} 31. Qd4 {[%clk 0:00:04]}  Qxb3 {[%clk 0:00:17]} 32. Qxe4 {[%clk 0:00:05]}  Rd8 {[%clk 0:00:18]} 33. Bg5 {[%clk 0:00:05]}  Rd1 {[%clk 0:00:17]} 34. Kg2 {[%clk 0:00:04]}  Qb1 {[%clk 0:00:12]} 35. Qa8+ {[%clk 0:00:04]}  Kh7 {[%clk 0:00:12]} 36. Qe4+ {[%clk 0:00:04]}  g6 {[%clk 0:00:13]} 37. Qf3 {[%clk 0:00:03]}  Kg8 {[%clk 0:00:10]} 38. Qa8+ {[%clk 0:00:03]}  Kh7 {[%clk 0:00:11]} 39. Bf6 {[%clk 0:00:03]}  g5 {[%clk 0:00:10]} 40. Qh8+ {[%clk 0:00:03]}  Kg6 {[%clk 0:00:11]} 41. Qg7+ {[%clk 0:00:03]}  Kf5 {[%clk 0:00:11]} 42. Qxg5+ {[%clk 0:00:03]}  Ke6 {[%clk 0:00:12]} 43. Bd8 {[%clk 0:00:02]}  Qb7+ {[%clk 0:00:09]} 44. f3 {[%clk 0:00:01]}  Rxf1 {[%clk 0:00:09]} 45. Qf6+ {[%clk 0:00:01]}  Kd5 {[%clk 0:00:09]} 46. Qd6+ {[%clk 0:00:02]}  Kc4 {[%clk 0:00:09]} 47. Be7 {[%clk 0:00:01]}  Qxf3+ {[%clk 0:00:08]} 48. Kh2 {[%clk 0:00:01]}  Rh1# {[%clk 0:00:09]} 0-1


[Site "https://www.chess.com"]